fUSD/lending_fUSD_20240913
["ID","MTS","AMOUNT","RATE_DAILY","PERIOD"]
[337911070,1726204241982,-2202.71091378,0.00013237,2]
[337911072,1726204241992,-443.9735359,0.00013237,2]
[337911074,1726204242001,-500.0,0.00013237,2]
[337911076,1726204242010,-500.0,0.00013237,2]
[337911078,1726204242019,-500.0,0.00013237,2]
[337911080,1726204242029,-500.0,0.00013237,2]
[337911082,1726204242038,-500.0,0.00013237,2]
[337911084,1726204242047,-500.0,0.00013237,2]
[337911086,1726204242057,-500.0,0.00013237,2]
[337911088,1726204242066,-3102.2,0.00013237,2]
[337911090,1726204242075,-982.94513414,0.00013237,2]
[337911092,1726204242090,-2236.78486586,0.00013237,2]
[337911094,1726204242099,-1660.72,0.00013237,2]
[337911096,1726204242109,-500.0,0.00013237,2]
[337911098,1726204242118,-500.0,0.00013237,2]
[337911100,1726204242128,-500.0,0.00013237,2]
[337911102,1726204242137,-830.35,0.00013237,2]
[337911104,1726204242146,-187.84196113,0.00013237,2]
[337911106,1726204242156,-500.0,0.00013237,2]
[337911108,1726204242166,-3104.55,0.00013237,2]
[337911110,1726204242175,-500.0,0.00013237,2]
[337911112,1726204242184,-1033.21,0.00013237,2]
[337911114,1726204242194,-500.0,0.00013237,2]
[337911116,1726204242203,-913.95,0.00013237,2]
[337911119,1726204242213,-611.2,0.00013237,2]
[337911121,1726204242223,-500.0,0.00013237,2]
[337911122,1726204242234,-283.43200077,0.00013237,2]
[337911124,1726204242244,-500.0,0.00013237,2]
[337911126,1726204242253,-691.1,0.00013237,2]
[337911128,1726204242263,-669.05,0.00013237,2]
[337911130,1726204242272,-2522.79,0.00013237,2]
[337911132,1726204242282,-500.0,0.00013237,2]
[337911134,1726204242292,-1765.73,0.00013237,2]
[337911136,1726204242302,-500.0,0.00013237,2]
[337911138,1726204242312,-755.57,0.00013237,2]
[337911140,1726204242321,-500.0,0.00013237,2]
[337911141,1726204242330,-500.0,0.00013237,2]
[337911143,1726204242339,-500.0,0.00013237,2]
[337911145,1726204242348,-500.0,0.00013237,2]
[337911147,1726204242358,-1589.15194205,0.00013237,2]
[337911149,1726204242367,-3505.48,0.00013237,2]
[337911151,1726204242376,-567.59,0.00013237,2]
[337911153,1726204242386,-1039.95,0.00013237,2]
[337911155,1726204242394,-500.0,0.00013237,2]
[337911157,1726204242403,-500.0,0.00013237,2]
[337911159,1726204242413,-3512.39,0.00013237,2]
[337911161,1726204242423,-2661.33,0.00013237,2]
[337911163,1726204242433,-712.38,0.00013237,2]
[337911167,1726204242443,-500.0,0.00013237,2]
[337911169,1726204242452,-1717.33,0.00013237,2]
[337911171,1726204242461,-3474.38,0.00013237,2]
[337911173,1726204242470,-500.0,0.00013237,2]
[337911175,1726204242479,-683.3,0.00013237,2]
[337911177,1726204242488,-500.0,0.00013237,2]
[337911179,1726204242498,-641.72,0.00013237,2]
[337911181,1726204242507,-882.73,0.00013237,2]
[337911182,1726204242516,-500.0,0.00013237,2]
[337911184,1726204242526,-500.0,0.00013237,2]
[337911186,1726204242535,-500.0,0.00013237,2]
[337911188,1726204242544,-500.0,0.00013237,2]
[337911190,1726204242553,-500.0,0.00013237,2]
[337911192,1726204242563,-500.0,0.00013237,2]
[337911194,1726204242572,-500.0,0.00013237,2]
[337911197,1726204242581,-500.0,0.00013237,2]
[337911199,1726204242591,-500.0,0.00013237,2]
[337911201,1726204242600,-764.66,0.00013237,2]
[337911202,1726204242610,-721.83,0.00013237,2]
[337911204,1726204242619,-621.05,0.00013237,2]
[337911206,1726204242628,-500.0,0.00013237,2]
[337911208,1726204242637,-1025.01,0.00013237,2]
[337911210,1726204242647,-500.0,0.00013237,2]
[337911212,1726204242656,-613.65,0.00013237,2]
[337911214,1726204242665,-1502.09,0.00013237,2]
[337911216,1726204242674,-2637.77,0.00013237,2]
[337911218,1726204242683,-500.0,0.00013237,2]
[337911220,1726204242692,-500.0,0.00013237,2]
[337911222,1726204242701,-1595.88,0.00013237,2]
[337911224,1726204242710,-1881.81,0.00013237,2]
[337911226,1726204242720,-500.0,0.00013237,2]
[337911228,1726204242729,-500.0,0.00013237,2]
[337911230,1726204242738,-775.34,0.00013237,2]
[337911232,1726204242747,-500.0,0.00013237,2]
[337911234,1726204242756,-500.0,0.00013237,2]
[337911236,1726204242765,-3908.86,0.00013237,2]
[337911238,1726204242775,-500.0,0.00013237,2]
[337911240,1726204242784,-1909.94,0.00013237,2]
[337911242,1726204242793,-500.0,0.00013237,2]
[337911244,1726204242802,-500.0,0.00013237,2]
[337911245,1726204242811,-4560.02,0.00013237,2]
[337911248,1726204242821,-500.0,0.00013237,2]
[337911250,1726204242830,-500.0,0.00013237,2]
[337911252,1726204242839,-968.39,0.00013237,2]
[337911254,1726204242849,-500.0,0.00013237,2]
[337911255,1726204242858,-2740.7,0.00013237,2]
[337911258,1726204242867,-500.0,0.00013237,2]
[337911260,1726204242876,-500.0,0.00013237,2]
[337911262,1726204242886,-1283.66,0.00013237,2]
[337911264,1726204242895,-500.0,0.00013237,2]
[337911266,1726204242905,-57444.7278041,0.00013237,2]
[337911267,1726204242915,-500.0,0.00013237,2]
[337911269,1726204242925,-2851.61,0.00013237,2]
[337911271,1726204242935,-500.0,0.00013237,2]
[337911273,1726204242944,-1328.34,0.00013237,2]
[337911275,1726204242954,-500.0,0.00013237,2]
[337911277,1726204242963,-509.17,0.00013237,2]
[337911279,1726204242972,-500.0,0.00013237,2]
[337911281,1726204242982,-500.0,0.00013237,2]
[337911283,1726204242991,-500.0,0.00013237,2]
[337911285,1726204243001,-12182.8619609,0.00013237,2]
[337911287,1726204243010,-2589.01,0.00013237,2]
[337911289,1726204243019,-500.0,0.00013237,2]
[337911290,1726204243028,-4057.28,0.00013237,2]
[337911293,1726204243037,-3114.08,0.00013237,2]
[337911294,1726204243047,-500.0,0.00013237,2]
[337911296,1726204243056,-500.0,0.00013237,2]
[337911298,1726204243065,-628.48462481,0.00013237,2]
[337911301,1726204243074,-1736.79,0.00013237,2]
[337911303,1726204243084,-1825.45,0.00013237,2]
[337911305,1726204243093,-500.0,0.00013237,2]
[337911307,1726204243103,-500.0,0.00013237,2]
[337911309,1726204243113,-659.95,0.00013237,2]
[337911311,1726204243122,-500.0,0.00013237,2]
[337911313,1726204243132,-2221.29,0.00013237,2]
[337911315,1726204243142,-500.0,0.00013237,2]
[337911317,1726204243151,-1160.28,0.00013237,2]
[337911319,1726204243161,-817.05,0.00013237,2]
[337911321,1726204243171,-500.0,0.00013237,2]
[337911323,1726204243181,-500.0,0.00013237,2]
[337911325,1726204243190,-623.02595892,0.00013237,2]
[337911327,1726204243200,-3752.32,0.00013237,2]
[337911329,1726204243210,-500.0,0.00013237,2]
[337911331,1726204243219,-1940.77,0.00013237,2]
[337911333,1726204243230,-500.0,0.00013237,2]
[337911335,1726204243240,-501.94,0.00013237,2]
[337911337,1726204243250,-500.0,0.00013237,2]
[337911339,1726204243259,-3282.21,0.00013237,2]
[337911341,1726204243269,-3675.92,0.00013237,2]
[337911343,1726204243278,-1628.08,0.00013237,2]
[337911345,1726204243288,-1822.87,0.00013237,2]
[337911347,1726204243297,-686.55,0.00013237,2]
[337911349,1726204243307,-2312.72,0.00013237,2]
[337911351,1726204243317,-2065.39,0.00013237,2]
[337911353,1726204243327,-6347.07,0.00013237,2]
[337911355,1726204243337,-500.0,0.00013237,2]
[337911357,1726204243346,-1027.49,0.00013237,2]
[337911359,1726204243356,-2685.18,0.00013237,2]
[337911361,1726204243366,-4462.8,0.00013237,2]
[337911363,1726204243376,-500.0,0.00013237,2]
[337911365,1726204243386,-1874.25,0.00013237,2]
[337911367,1726204243396,-11604.44,0.00013237,2]
[337911369,1726204243406,-500.0,0.00013237,2]
[337911371,1726204243415,-1383.94,0.00013237,2]
[337911373,1726204243425,-3270.78,0.00013237,2]
[337911375,1726204243435,-2343.15,0.00013237,2]
[337911377,1726204243444,-1662.46,0.00013237,2]
[337911378,1726204243453,-2692.2,0.00013237,2]
[337911379,1726204243463,-500.0,0.00013237,2]
[337911380,1726204243472,-893.04,0.00013237,2]
[337911381,1726204243483,-673.01,0.00013237,2]
[337911382,1726204243494,-1500.78,0.00013237,2]
[337911383,1726204243504,-1006.29,0.00013237,2]
[337911384,1726204243515,-1411.43,0.00013237,2]
[337911385,1726204243524,-3758.73,0.00013237,2]
[337911386,1726204243534,-500.0,0.00013237,2]
[337911387,1726204243544,-655.36,0.00013237,2]
[337911388,1726204243553,-2599.77,0.00013237,2]
[337911389,1726204243563,-500.0,0.00013237,2]
[337911390,1726204243573,-8871.75,0.00013237,2]
[337911391,1726204243583,-363.99691993,0.00013237,2]
[337911392,1726204243592,-1741.01,0.00013237,2]
[337911393,1726204243601,-500.0,0.00013237,2]
[337911394,1726204243610,-500.0,0.00013237,2]
[337911396,1726204243620,-2183.33,0.00013237,2]
[337911398,1726204243630,-502.23,0.00013237,2]
[337911400,1726204243639,-1082.85,0.00013237,2]
[337911401,1726204243649,-3201.67,0.00013237,2]
[337911403,1726204243658,-29.93139296,0.00013237,2]
[337911406,1726204243674,-470.06860704,0.00013237,2]
[337911408,1726204243684,-2469.27592727,0.00013237,2]
[337911410,1726204243695,-557.73407273,0.00013237,2]
[337911412,1726204243704,-1198.32,0.00013237,2]
[337911414,1726204243713,-500.0,0.00013237,2]
[337911416,1726204243723,-500.0,0.00013237,2]
[337911418,1726204243731,-500.0,0.00013237,2]
[337911420,1726204243741,-1375.33,0.00013237,2]
[337911422,1726204243751,-500.0,0.00013237,2]
[337911423,1726204243760,-1250.81,0.00013237,2]
[337911425,1726204243769,-500.0,0.00013237,2]
[337911427,1726204243778,-1876.19,0.00013237,2]
[337911429,1726204243788,-526.38,0.00013237,2]
[337911431,1726204243797,-962.04,0.00013237,2]
[337911433,1726204243806,-500.0,0.00013237,2]
[337911435,1726204243816,-1169.07,0.00013237,2]
[337911437,1726204243826,-500.0,0.00013237,2]
[337911439,1726204243835,-5812.34,0.00013237,2]
[337911441,1726204243845,-500.0,0.00013237,2]
[337911443,1726204243854,-3252.28716903,0.00013237,2]
[337911445,1726204243866,-109.36283097,0.00013237,2]
[337911447,1726204243877,-500.0,0.00013237,2]
[337911449,1726204243888,-500.0,0.00013237,2]
[337911451,1726204243897,-4434.19,0.00013237,2]
[337911453,1726204243907,-3725.83,0.00013237,2]
[337911455,1726204243916,-597.25,0.00013237,2]
[337911457,1726204243926,-1389.4,0.00013237,2]
[337911459,1726204243935,-6145.28,0.00013237,2]
[337911461,1726204243945,-818.66,0.00013237,2]
[337911463,1726204243954,-1826.91364478,0.00013237,2]
[337911465,1726204243965,-2478.26635522,0.00013237,2]
[337911467,1726204243975,-23202.14460573,0.00013237,2]
[337911469,1726204243986,-3201.98863901,0.00013237,2]
[337911514,1726204244432,-150.0,0.00013003,2]
[337911516,1726204244441,-150.0,0.00013169,2]
[337911518,1726204244450,-12.91,0.00013237,2]
[337911521,1726204244461,-1083.32602541,0.00013237,2]
[337911523,1726204244473,-33911.69072985,0.00013237,2]
[337911525,1726204244482,-3149.03,0.00013237,2]
[337911527,1726204244491,-843.42,0.00013237,2]
[337911529,1726204244500,-500.0,0.00013237,2]
[337911531,1726204244509,-500.0,0.00013237,2]
[337911533,1726204244518,-500.0,0.00013237,2]
[337911535,1726204244528,-500.0,0.00013237,2]
[337911537,1726204244537,-559.85518934,0.00013237,2]
[337911539,1726204244548,-200.65481066,0.00013237,2]
[337911541,1726204244557,-3017.23,0.00013237,2]
[337911543,1726204244566,-1374.84346923,0.00013237,2]
[337911545,1726204244581,-264.83431766,0.00012983,2]
[337911548,1726204244592,-35.16568234,0.00012983,2]
[337911550,1726204244601,-1477.67653077,0.00013237,2]
[337911552,1726204244610,-5205.92,0.00013237,2]
[337911554,1726204244620,-501.95,0.00013237,2]
[337911556,1726204244630,-2545.91,0.00013237,2]
[337911557,1726204244639,-514.7,0.00013237,2]
[337911559,1726204244648,-578.38,0.00013237,2]
[337911561,1726204244657,-3133.92,0.00013237,2]
[337911564,1726204244667,-622.03,0.00013237,2]
[337911565,1726204244677,-610.11,0.00013237,2]
[337911567,1726204244685,-5123.84,0.00013237,2]
[337911569,1726204244695,-500.0,0.00013237,2]
[337911571,1726204244704,-1858.86,0.00013237,2]
[337911573,1726204244713,-500.0,0.00013237,2]
[337911575,1726204244722,-500.0,0.00013237,2]
[337911577,1726204244732,-6069.66,0.00013237,2]
[337911579,1726204244741,-570.13,0.00013237,2]
[337911581,1726204244750,-3228.08,0.00013237,2]
[337911583,1726204244759,-500.0,0.00013237,2]
[337911585,1726204244768,-1319.68,0.00013237,2]
[337911587,1726204244777,-5215.32,0.00013237,2]
[337911589,1726204244786,-1674.76,0.00013237,2]
[337911591,1726204244796,-2630.15,0.00013237,2]
[337911593,1726204244805,-500.0,0.00013237,2]
[337911595,1726204244814,-1736.59,0.00013237,2]
[337911597,1726204244823,-4061.96,0.00013237,2]
[337911599,1726204244832,-498.23600019,0.00013237,2]
[337911601,1726204244841,-5160.58,0.00013237,2]
[337911603,1726204244851,-1729.06,0.00013237,2]
[337911605,1726204244859,-6139.49,0.00013237,2]
[337911607,1726204244868,-1029.08,0.00013237,2]
[337911609,1726204244878,-624.37,0.00013237,2]
[337911611,1726204244888,-500.0,0.00013237,2]
[337911613,1726204244896,-817.41,0.00013237,2]
[337911615,1726204244905,-1345.53,0.00013237,2]
[337911617,1726204244915,-500.0,0.00013237,2]
[337911619,1726204244925,-1534.79,0.00013237,2]
[337911621,1726204244934,-1308.4,0.00013237,2]
[337911623,1726204244943,-1076.77,0.00013237,2]
[337911624,1726204244953,-670.02,0.00013237,2]
[337911626,1726204244962,-582.12,0.00013237,2]
[337911628,1726204244971,-10076.54,0.00013237,2]
[337911630,1726204244980,-6926.04,0.00013237,2]
[337911632,1726204244990,-500.0,0.00013237,2]
[337911634,1726204244999,-500.0,0.00013237,2]
[337911636,1726204245008,-40885.56,0.00013237,2]
[337911638,1726204245017,-500.0,0.00013237,2]
[337911640,1726204245028,-8985.98,0.00013237,2]
[337911643,1726204245040,-500.0,0.00013237,2]
[337911645,1726204245052,-4657.61,0.00013237,2]
[337911647,1726204245064,-6922.97,0.00013237,2]
[337911649,1726204245076,-500.0,0.00013237,2]
[337911652,1726204245088,-3064.7,0.00013237,2]
[337911654,1726204245098,-4361.55,0.00013237,2]
[337911656,1726204245108,-1325.96,0.00013237,2]
[337911658,1726204245118,-1242.98,0.00013237,2]
[337911660,1726204245131,-500.0,0.00013237,2]
[337911662,1726204245143,-3348.09,0.00013237,2]
[337911664,1726204245154,-2949.06,0.00013237,2]
[337911667,1726204245165,-3082.95,0.00013237,2]
[337911669,1726204245177,-15826.24,0.00013237,2]
[337911671,1726204245189,-4124.09,0.00013237,2]
[337911673,1726204245201,-500.0,0.00013238,2]
[337911676,1726204245211,-500.0,0.00013238,2]
[337911678,1726204245223,-500.38843668,0.00013238,2]
[337911680,1726204245238,-2478.28,0.00013238,2]
[337911682,1726204245251,-711.55,0.00013238,2]
[337911685,1726204245262,-500.0,0.00013238,2]
[337911687,1726204245273,-3327.34,0.00013238,2]
[337911689,1726204245284,-3179.7,0.00013238,2]
[337911691,1726204245295,-4372.51,0.00013238,2]
[337911693,1726204245306,-4647.46,0.00013238,2]
[337911695,1726204245317,-567.87,0.00013238,2]
[337911698,1726204245328,-500.0,0.00013238,2]
[337911700,1726204245341,-4304.36,0.00013238,2]
[337911702,1726204245353,-572.148127,0.00013238,2]
[337911704,1726204245364,-1540.8,0.00013238,2]
[337911706,1726204245376,-685.5,0.00013238,2]
[337911709,1726204245386,-500.0,0.00013238,2]
[337911711,1726204245396,-2881.39,0.00013238,2]
[337911714,1726204245406,-6115.25,0.00013238,2]
[337911717,1726204245418,-2270.16,0.00013238,2]
[337911719,1726204245428,-2190.52,0.00013238,2]
[337911721,1726204245439,-451.72566901,0.00013238,2]
[337911723,1726204245453,-48.27433099,0.00013238,2]
[337911725,1726204245464,-500.0,0.00013238,2]
[337911728,1726204245476,-107.86566901,0.00013238,2]
[337911730,1726204245489,-523.20433099,0.00013238,2]
[337911732,1726204245501,-15.85850042,0.00013238,2]
[337911735,1726204245516,-484.14149958,0.00013238,2]
[337911737,1726204245527,-3067.79,0.00013238,2]
[337911739,1726204245539,-500.0,0.00013238,2]
[337911741,1726204245550,-2987.0,0.00013238,2]
[337911743,1726204245561,-500.0,0.00013238,2]
[337911745,1726204245571,-2358.71,0.00013238,2]
[337911747,1726204245581,-2991.06,0.00013238,2]
[337911749,1726204245591,-2974.05,0.00013238,2]
[337911752,1726204245601,-313.31075966,0.00013238,2]
[337911754,1726204245612,-500.0,0.00013238,2]
[337911756,1726204245623,-2209.05,0.00013238,2]
[337911758,1726204245634,-886.27,0.00013238,2]
[337911760,1726204245646,-2164.82,0.00013238,2]
[337911762,1726204245658,-1290.24,0.00013238,2]
[337911764,1726204245669,-500.0,0.00013238,2]
[337911766,1726204245678,-803.70026787,0.00013238,2]
[337911772,1726204245718,-555.60973213,0.00013238,2]
[337911774,1726204245728,-1039.80759535,0.00013238,2]
[337911776,1726204245743,-320.02240465,0.00013238,2]
[337911778,1726204245754,-500.0,0.00013238,2]
[337911780,1726204245764,-8.73528638,0.00013238,2]
[337911782,1726204245777,-2487.97471362,0.00013238,2]
[337911784,1726204245787,-599.69,0.00013238,2]
[337911787,1726204245797,-2408.07,0.00013238,2]
[337911789,1726204245812,-960.5,0.00013238,2]
[337911791,1726204245823,-500.0,0.00013238,2]
[337911793,1726204245833,-5674.68,0.00013238,2]
[337911796,1726204245844,-742.98,0.00013238,2]
[337911798,1726204245855,-974.73,0.00013238,2]
[337911800,1726204245865,-500.0,0.00013238,2]
[337911802,1726204245875,-956.89,0.00013238,2]
[337911804,1726204245885,-511.42,0.00013238,2]
[337911806,1726204245896,-2170.92,0.00013238,2]
[337911808,1726204245906,-500.0,0.00013238,2]
[337911810,1726204245917,-4122.89,0.00013238,2]
[337911812,1726204245927,-2957.84,0.00013238,2]
[337911813,1726204245938,-1358.06,0.00013238,2]
[337911814,1726204245949,-505.1,0.00013238,2]
[337911815,1726204245959,-1859.15,0.00013238,2]
[337911816,1726204245970,-4953.36,0.00013238,2]
[337911817,1726204245981,-3283.32,0.00013238,2]
[337911819,1726204245991,-2998.59,0.00013238,2]
[337911821,1726204246001,-2407.17,0.00013238,2]
[337911823,1726204246011,-603.7,0.00013238,2]
[337911825,1726204246022,-1239.13,0.00013238,2]
[337911827,1726204246032,-1165.67,0.00013238,2]
[337911829,1726204246043,-765.86,0.00013238,2]
[337911832,1726204246055,-500.0,0.00013238,2]
[337911834,1726204246065,-500.0,0.00013238,2]
[337911836,1726204246075,-1611.01,0.00013238,2]
[337911838,1726204246088,-2754.45,0.00013238,2]
[337911840,1726204246098,-254.78350291,0.00013238,2]
[337911842,1726204246109,-2506.85,0.00013238,2]
[337911845,1726204246120,-734.11,0.00013238,2]
[337911847,1726204246130,-515.39,0.00013238,2]
[337911849,1726204246141,-1408.22,0.00013238,2]
[337911851,1726204246152,-552.56,0.00013238,2]
[337911853,1726204246162,-4352.74,0.00013238,2]
[337911855,1726204246174,-1154.58348737,0.00013238,2]
[337911874,1726204246359,-43.1597317,0.00013238,2]
[337911876,1726204246372,-1755.02678093,0.00013238,2]
[337911878,1726204246383,-500.0,0.00013238,2]
[337911880,1726204246394,-1236.45,0.00013238,2]
[337911882,1726204246404,-500.0,0.00013238,2]
[337911885,1726204246415,-4639.72,0.00013238,2]
[337911887,1726204246427,-2629.89,0.00013238,2]
[337911889,1726204246437,-1319.14,0.00013238,2]
[337911891,1726204246448,-738.8,0.00013238,2]
[337911893,1726204246459,-970.69,0.00013238,2]
[337911895,1726204246469,-3356.79,0.00013238,2]
[337911897,1726204246479,-500.0,0.00013238,2]
[337911899,1726204246489,-3145.1,0.00013238,2]
[337911901,1726204246500,-2927.02,0.00013238,2]
[337911904,1726204246510,-500.0,0.00013238,2]
[337911906,1726204246521,-1161.72,0.00013238,2]
[337911908,1726204246532,-4909.01,0.00013238,2]
[337911910,1726204246542,-3380.07,0.00013238,2]
[337911912,1726204246553,-1078.4,0.00013238,2]
[337911914,1726204246563,-500.0,0.00013238,2]
[337911916,1726204246573,-2263.97,0.00013238,2]
[337911918,1726204246584,-399.96937741,0.00013238,2]
[337911920,1726204246594,-2948.16,0.00013238,2]
[337911922,1726204246604,-500.0,0.00013238,2]
[337911925,1726204246614,-2977.26,0.00013238,2]
[337911926,1726204246624,-1134.31,0.00013238,2]
[337911928,1726204246635,-860.79,0.00013238,2]
[337911930,1726204246645,-1000.53,0.00013238,2]
[337911932,1726204246656,-500.0,0.00013238,2]
[337911934,1726204246666,-2279.39,0.00013238,2]
[337911936,1726204246677,-500.0,0.00013238,2]
[337911939,1726204246687,-505.5,0.00013238,2]
[337911941,1726204246698,-555.73,0.00013238,2]
[337911943,1726204246708,-966.45,0.00013238,2]
[337911945,1726204246718,-1063.39,0.00013238,2]
[337911947,1726204246728,-1016.88,0.00013238,2]
[337911949,1726204246739,-2902.47,0.00013238,2]
[337911951,1726204246749,-1779.2,0.00013238,2]
[337911953,1726204246760,-2123.95,0.00013238,2]
[337911955,1726204246770,-500.0,0.00013238,2]
[337911958,1726204246781,-1651.41,0.00013238,2]
[337911960,1726204246791,-1647.19,0.00013238,2]
[337911962,1726204246801,-929.01,0.00013238,2]
[337911964,1726204246811,-3780.98,0.00013238,2]
[337911966,1726204246822,-715.99,0.00013238,2]
[337911968,1726204246832,-2850.37,0.00013239,2]
[337911970,1726204246842,-500.0,0.00013239,2]
[337911972,1726204246852,-2589.53,0.00013239,2]
[337911974,1726204246863,-2655.06,0.00013239,2]
[337911976,1726204246873,-2373.29,0.00013239,2]
[337911979,1726204246883,-150.0,0.00013239,2]
[337911981,1726204246894,-3532.13,0.00013239,2]
[337911983,1726204246904,-2120.54,0.00013239,2]
[337911985,1726204246914,-2077.01,0.00013239,2]
[337911987,1726204246924,-1065.63,0.00013239,2]
[337911989,1726204246935,-500.0,0.00013239,2]
[337911991,1726204246945,-3639.3,0.00013239,2]
[337911993,1726204246956,-4166.34,0.00013239,2]
[337911995,1726204246966,-5280.14,0.00013239,2]
[337911997,1726204246976,-3485.44,0.00013239,2]
[337911999,1726204246987,-4130.17,0.00013239,2]
[337912002,1726204246997,-500.0,0.00013239,2]
[337912004,1726204247007,-243.6265204,0.00013239,2]
[337912006,1726204247018,-4504.36,0.00013239,2]
[337912008,1726204247028,-768.92,0.00013239,2]
[337912010,1726204247039,-1504.48,0.00013239,2]
[337912012,1726204247049,-369.25828576,0.00013239,2]
[337912014,1726204247060,-500.0,0.00013239,2]
[337912016,1726204247070,-5106.53,0.00013239,2]
[337912018,1726204247081,-6955.4281695,0.00013255,2]
[337912020,1726204247092,-1197.3986685,0.00013264,2]
[337912022,1726204247102,-500.0,0.00013273,2]
[337912024,1726204247113,-406.07904371,0.00013273,2]
[337912027,1726204247124,-155.0,0.00013293,2]
[337912029,1726204247135,-356.98,0.000133,2]
[337912031,1726204247145,-357.7,0.000133,2]
[337912033,1726204247155,-786.31002945,0.0001331,2]
[337912035,1726204247166,-19205.65938531,0.00013315,2]
[337912037,1726204247177,-169.48,0.0001338,2]
[337912039,1726204247187,-244.54,0.00013462,2]
[337912041,1726204247197,-462.35,0.00013476,2]
[337912043,1726204247208,-153.966,0.00013494,2]
[337912045,1726204247218,-1000.0,0.000135,2]
[337912048,1726204247230,-500.0,0.00013509,2]
[337912050,1726204247240,-1380.78,0.00013509,2]
[337912052,1726204247250,-8935.9,0.0001351,2]
[337912054,1726204247260,-1434.34,0.0001351,2]
[337912056,1726204247271,-8483.51,0.0001351,2]
[337912058,1726204247282,-3979.48,0.0001351,2]
[337912060,1726204247292,-500.0,0.0001351,2]
[337912062,1726204247302,-1962.62,0.0001351,2]
[337912064,1726204247312,-860.97,0.0001351,2]
[337912066,1726204247323,-2353.28,0.0001351,2]
[337912069,1726204247334,-3536.45,0.0001351,2]
[337912071,1726204247344,-1152.94,0.0001351,2]
[337912073,1726204247355,-5722.4,0.0001351,2]
[337912074,1726204247365,-2709.99,0.0001351,2]
[337912077,1726204247377,-3371.11,0.0001351,2]
[337912079,1726204247388,-3189.72,0.0001351,2]
[337912081,1726204247399,-12612.31,0.0001351,2]
[337912083,1726204247408,-1337.01,0.0001351,2]
[337912085,1726204247420,-3843.6,0.0001351,2]
[337912087,1726204247430,-5723.66,0.0001351,2]
[337912089,1726204247442,-1456.12,0.0001351,2]
[337912091,1726204247452,-2753.52,0.0001351,2]
[337912093,1726204247463,-3668.67,0.0001351,2]
[337912095,1726204247475,-3674.61,0.0001351,2]
[337912097,1726204247487,-4422.95,0.0001351,2]
[337912099,1726204247500,-20572.59,0.0001351,2]
[337912101,1726204247511,-3050.88,0.0001351,2]
[337912104,1726204247524,-6270.98,0.0001351,2]
[337912106,1726204247535,-2919.12,0.0001351,2]
[337912108,1726204247548,-5030.42,0.0001351,2]
[337912110,1726204247560,-11815.52,0.0001351,2]
[337912112,1726204247571,-54185.45,0.0001351,2]
[337912114,1726204247581,-5008.11,0.0001351,2]
[337912115,1726204247591,-3232.61,0.0001351,2]
[337912117,1726204247602,-7012.77709175,0.0001351,2]
[337912210,1726204248602,-150.0,0.00013042,2]
[337912212,1726204248612,-1785.69290825,0.0001351,2]
[337912214,1726204248623,-6.68430494,0.0001351,2]
[337912216,1726204248635,-797.02635429,0.0001351,2]
[337912284,1726204249353,-150.0,0.00013063,2]
[337912286,1726204249363,-150.0,0.00013068,2]
[337912288,1726204249373,-2655.70934077,0.0001351,2]
[337912290,1726204249382,-357.89977219,0.0001351,2]